[Event "Live Chess"]
[Site "Chess.com"]
[Date "2023.05.21"]
[Round "-"]
[White "Dhaydon19"]
[Black "chrisbradgate"]
[Result "1-0"]
[WhiteElo "2697"]
[BlackElo "873"]
[TimeControl "300"]
[EndTime "4:15:42 PDT"]
[Termination "Dhaydon19 won by checkmate"]

1. d4 {[%clk 0:04:58.3]} 1... d5 {[%clk 0:04:58.2]} 2. Nf3 {[%clk 0:04:57.6]}
2... Nc6 {[%clk 0:04:56]} 3. g3 {[%clk 0:04:57]} 3... f6 {[%clk 0:04:53]} 4. Bg2
{[%clk 0:04:56.3]} 4... e5 {[%clk 0:04:48.8]} 5. dxe5 {[%clk 0:04:55.2]} 5...
fxe5 {[%clk 0:04:47.2]} 6. O-O {[%clk 0:04:54.9]} 6... d4 {[%clk 0:04:40.3]} 7.
c3 {[%clk 0:04:53.4]} 7... Bg4 {[%clk 0:04:35.7]} 8. cxd4 {[%clk 0:04:51.9]}
8... Bxf3 {[%clk 0:04:34.5]} 9. Bxf3 {[%clk 0:04:49.6]} 9... Qxd4 {[%clk
0:04:27.3]} 10. Qb3 {[%clk 0:04:47.1]} 10... Qb4 {[%clk 0:04:20.1]} 11. Qe6+
{[%clk 0:04:43]} 11... Nge7 {[%clk 0:04:08.6]} 12. Nc3 {[%clk 0:04:41.1]} 12...
Qd6 {[%clk 0:04:03.2]} 13. Qb3 {[%clk 0:04:37.6]} 13... O-O-O {[%clk 0:03:59.5]}
14. a3 {[%clk 0:04:32.1]} 14... Nf5 {[%clk 0:03:50.3]} 15. Nb5 {[%clk 0:04:28]}
15... Qg6 {[%clk 0:03:34.2]} 16. Nxa7+ {[%clk 0:04:20.2]} 16... Kd7 {[%clk
0:03:22.7]} 17. Nxc6 {[%clk 0:04:15.3]} 17... bxc6 {[%clk 0:03:20.7]} 18. Rd1+
{[%clk 0:04:14]} 18... Ke7 {[%clk 0:03:18.7]} 19. Rxd8 {[%clk 0:04:10.5]} 19...
Kxd8 {[%clk 0:03:16.8]} 20. Qd3+ {[%clk 0:04:10]} 20... Ke7 {[%clk 0:03:15.2]}
21. Bd2 {[%clk 0:04:08.3]} 21... Ke6 {[%clk 0:02:59.2]} 22. Rc1 {[%clk 0:04:05]}
22... Be7 {[%clk 0:02:45.6]} 23. Rxc6+ {[%clk 0:04:03.1]} 23... Bd6 {[%clk
0:02:37.9]} 24. g4 {[%clk 0:03:55.3]} 24... h5 {[%clk 0:02:06.2]} 25. Qxf5+
{[%clk 0:03:53.7]} 25... Qxf5 {[%clk 0:02:05.2]} 26. gxf5+ {[%clk 0:03:53.3]}
26... Kxf5 {[%clk 0:02:03.6]} 27. Bb4 {[%clk 0:03:52.4]} 27... Bxb4 {[%clk
0:02:00.6]} 28. axb4 {[%clk 0:03:51.2]} 28... Ra8 {[%clk 0:01:55.7]} 29. Rf6+
{[%clk 0:03:49]} 29... Kxf6 {[%clk 0:01:53.2]} 30. Bxa8 {[%clk 0:03:48.6]} 30...
Kf5 {[%clk 0:01:52.2]} 31. f3 {[%clk 0:03:46.4]} 31... Kf4 {[%clk 0:01:51]} 32.
Kf2 {[%clk 0:03:45.5]} 32... g5 {[%clk 0:01:50.1]} 33. Bc6 {[%clk 0:03:42.9]}
33... g4 {[%clk 0:01:46]} 34. fxg4 {[%clk 0:03:40.2]} 34... hxg4 {[%clk
0:01:45.1]} 35. e3+ {[%clk 0:03:39.9]} 35... Kf5 {[%clk 0:01:39.7]} 36. Kg3
{[%clk 0:03:39]} 36... Kg5 {[%clk 0:01:37]} 37. Bd7 {[%clk 0:03:37.1]} 37... Kf6
{[%clk 0:01:29.7]} 38. Bxg4 {[%clk 0:03:35.8]} 38... Kg5 {[%clk 0:01:28.4]} 39.
h4+ {[%clk 0:03:34.5]} 39... Kh6 {[%clk 0:01:26.9]} 40. Kf3 {[%clk 0:03:34]}
40... Kg6 {[%clk 0:01:24.4]} 41. Ke4 {[%clk 0:03:33.4]} 41... Kf6 {[%clk
0:01:23.2]} 42. b5 {[%clk 0:03:31.6]} 42... Kg6 {[%clk 0:01:15.3]} 43. Kxe5
{[%clk 0:03:30.4]} 43... Kf7 {[%clk 0:01:13.6]} 44. Kd5 {[%clk 0:03:29.5]} 44...
Ke7 {[%clk 0:01:12.2]} 45. Kc6 {[%clk 0:03:29.2]} 45... Kd8 {[%clk 0:01:11]} 46.
h5 {[%clk 0:03:28.6]} 46... Ke8 {[%clk 0:01:05.7]} 47. Kxc7 {[%clk 0:03:27.5]}
47... Kf7 {[%clk 0:01:03.6]} 48. b6 {[%clk 0:03:27.3]} 48... Kg7 {[%clk
0:01:01.7]} 49. b7 {[%clk 0:03:26.4]} 49... Kf7 {[%clk 0:00:58.7]} 50. b8=Q
{[%clk 0:03:24.8]} 50... Ke7 {[%clk 0:00:56.6]} 51. Qd8+ {[%clk 0:03:23]} 51...
Kf7 {[%clk 0:00:55.3]} 52. Qd7+ {[%clk 0:03:21.9]} 52... Kg8 {[%clk 0:00:51.9]}
53. Be6+ {[%clk 0:03:20.4]} 53... Kh8 {[%clk 0:00:47.7]} 54. Qe8+ {[%clk
0:03:19.8]} 54... Kg7 {[%clk 0:00:45.9]} 55. Qg6+ {[%clk 0:03:19.5]} 55... Kf8
{[%clk 0:00:44]} 56. Qf7# {[%clk 0:03:18.1]} 1-0

[Event "Live Chess"]
[Site "Chess.com"]
[Date "2023.05.21"]
[Round "-"]
[White "davigator"]
[Black "Conradical12"]
[Result "1-0"]
[WhiteElo "2326"]
[BlackElo "1565"]
[TimeControl "300"]
[EndTime "4:15:46 PDT"]
[Termination "davigator won by resignation"]

1. e4 {[%clk 0:04:56.5]} 1... e5 {[%clk 0:04:59.5]} 2. Nf3 {[%clk 0:04:53.8]}
2... Nc6 {[%clk 0:04:58.9]} 3. Bc4 {[%clk 0:04:52.4]} 3... Nf6 {[%clk
0:04:58.5]} 4. d3 {[%clk 0:04:50.9]} 4... Bc5 {[%clk 0:04:57.5]} 5. c3 {[%clk
0:04:49.5]} 5... a5 {[%clk 0:04:55.4]} 6. Bg5 {[%clk 0:04:44.9]} 6... O-O {[%clk
0:04:53.8]} 7. Nbd2 {[%clk 0:04:41.6]} 7... h6 {[%clk 0:04:53.1]} 8. Bh4 {[%clk
0:04:39.9]} 8... g5 {[%clk 0:04:51.8]} 9. Bg3 {[%clk 0:04:38]} 9... d6 {[%clk
0:04:46.3]} 10. Bb5 {[%clk 0:04:33.4]} 10... Bd7 {[%clk 0:04:44.5]} 11. a4
{[%clk 0:04:31.3]} 11... Qe7 {[%clk 0:04:33.8]} 12. O-O {[%clk 0:04:29.3]} 12...
Nh5 {[%clk 0:04:24]} 13. Re1 {[%clk 0:04:25.4]} 13... Nxg3 {[%clk 0:04:16.3]}
14. hxg3 {[%clk 0:04:23.8]} 14... f5 {[%clk 0:04:09.9]} 15. exf5 {[%clk
0:04:15.4]} 15... Rxf5 {[%clk 0:04:06.2]} 16. d4 {[%clk 0:04:14]} 16... Ba7
{[%clk 0:03:59.5]} 17. Nc4 {[%clk 0:03:42.1]} 17... Raf8 {[%clk 0:03:50.4]} 18.
g4 {[%clk 0:03:32.8]} 18... Rf4 {[%clk 0:03:44.7]} 19. dxe5 {[%clk 0:03:31.7]}
19... d5 {[%clk 0:03:09.1]} 20. Qxd5+ {[%clk 0:03:29.4]} 20... Be6 {[%clk
0:03:08.3]} 21. Qd3 {[%clk 0:03:22]} 21... Bxg4 {[%clk 0:03:01.5]} 22. Bxc6
{[%clk 0:03:19.5]} 22... bxc6 {[%clk 0:02:59.6]} 23. Ncd2 {[%clk 0:03:13.3]}
23... Qe6 {[%clk 0:02:48.8]} 24. Re2 {[%clk 0:03:05.1]} 24... Bxf3 {[%clk
0:02:41.2]} 25. Nxf3 {[%clk 0:03:03.3]} 25... g4 {[%clk 0:02:38.3]} 26. Nd4
{[%clk 0:03:00.3]} 26... Qd5 {[%clk 0:02:01.9]} 27. e6 {[%clk 0:02:54.3]} 27...
Bxd4 {[%clk 0:01:58.2]} 28. cxd4 {[%clk 0:02:50.9]} 28... Rxd4 {[%clk
0:01:53.7]} 29. Qg6+ {[%clk 0:02:49.3]} 29... Kh8 {[%clk 0:01:51.9]} 30. Qxh6+
{[%clk 0:02:48]} 30... Kg8 {[%clk 0:01:51.1]} 31. Qg6+ {[%clk 0:02:46.8]} 31...
Kh8 {[%clk 0:01:50.4]} 32. e7 {[%clk 0:02:41.2]} 32... Rd1+ {[%clk 0:01:42.7]}
33. Re1 {[%clk 0:02:39.6]} 33... Rxe1+ {[%clk 0:01:29.8]} 34. Rxe1 {[%clk
0:02:37]} 1-0

[Event "Live Chess"]
[Site "Chess.com"]
[Date "2023.05.21"]
[Round "-"]
[White "yeetpizza74"]
[Black "FlorinHristea"]
[Result "0-1"]
[WhiteElo "502"]
[BlackElo "1818"]
[TimeControl "300"]
[EndTime "4:15:47 PDT"]
[Termination "FlorinHristea won by checkmate"]

1. e4 {[%clk 0:04:58.6]} 1... d5 {[%clk 0:04:59.3]} 2. exd5 {[%clk 0:04:56.8]}
2... Qxd5 {[%clk 0:04:57.9]} 3. Nc3 {[%clk 0:04:56]} 3... Qd8 {[%clk 0:04:56.7]}
4. Nf3 {[%clk 0:04:51]} 4... Nf6 {[%clk 0:04:56.6]} 5. d4 {[%clk 0:04:49]} 5...
Bg4 {[%clk 0:04:55.9]} 6. Be2 {[%clk 0:04:47.1]} 6... Nc6 {[%clk 0:04:52.6]} 7.
Be3 {[%clk 0:04:40.9]} 7... e6 {[%clk 0:04:50.5]} 8. O-O {[%clk 0:04:38.3]} 8...
Bb4 {[%clk 0:04:50.1]} 9. a3 {[%clk 0:04:33.1]} 9... Ba5 {[%clk 0:04:48.7]} 10.
Ne5 {[%clk 0:04:21.7]} 10... Bxe2 {[%clk 0:04:47.1]} 11. Nxe2 {[%clk 0:04:18.3]}
11... Nxe5 {[%clk 0:04:43.8]} 12. dxe5 {[%clk 0:04:16.8]} 12... Nd5 {[%clk
0:04:43.6]} 13. c4 {[%clk 0:04:10.2]} 13... Nxe3 {[%clk 0:04:42.2]} 14. fxe3
{[%clk 0:04:07.7]} 14... c6 {[%clk 0:04:34.5]} 15. c5 {[%clk 0:04:04.8]} 15...
O-O {[%clk 0:04:31.7]} 16. Qc2 {[%clk 0:03:58.5]} 16... Qd5 {[%clk 0:04:28.6]}
17. b4 {[%clk 0:03:50.1]} 17... Bc7 {[%clk 0:04:26.8]} 18. Qb2 {[%clk
0:03:38.2]} 18... Bxe5 {[%clk 0:04:23.8]} 19. Qc2 {[%clk 0:03:35]} 19... Bxa1
{[%clk 0:04:22.3]} 20. Rxa1 {[%clk 0:03:32.7]} 20... Rad8 {[%clk 0:04:22]} 21.
Nf4 {[%clk 0:03:29.8]} 21... Qd2 {[%clk 0:04:14.6]} 22. Qa4 {[%clk 0:03:18]}
22... Qxe3+ {[%clk 0:04:10.8]} 23. Kf1 {[%clk 0:03:15.6]} 23... Qxf4+ {[%clk
0:04:09.8]} 24. Kg1 {[%clk 0:03:13.2]} 24... a6 {[%clk 0:04:06.5]} 25. b5 {[%clk
0:03:10.5]} 25... axb5 {[%clk 0:04:04.6]} 26. Qa5 {[%clk 0:03:07.7]} 26... Qd4+
{[%clk 0:03:59.1]} 27. Kf1 {[%clk 0:02:59.3]} 27... Qxa1+ {[%clk 0:03:56.1]} 28.
Ke2 {[%clk 0:02:56.5]} 28... Rd5 {[%clk 0:03:50.6]} 29. Ke3 {[%clk 0:02:47.7]}
29... Rfd8 {[%clk 0:03:50.1]} 30. Kf4 {[%clk 0:02:44.3]} 30... Qd4+ {[%clk
0:03:50]} 31. Kf3 {[%clk 0:02:43.2]} 31... Rf5+ {[%clk 0:03:48.5]} 32. Kg3
{[%clk 0:02:41.8]} 32... Qf4+ {[%clk 0:03:47.1]} 33. Kh3 {[%clk 0:02:39.9]}
33... Rd3+ {[%clk 0:03:46.8]} 34. g3 {[%clk 0:02:38.9]} 34... Rh5+ {[%clk
0:03:44]} 35. Kg2 {[%clk 0:02:36.9]} 35... Rd2+ {[%clk 0:03:42.3]} 36. Kg1
{[%clk 0:02:35.3]} 36... Qd4+ {[%clk 0:03:37.1]} 37. Kf1 {[%clk 0:02:33.9]}
37... Qf2# {[%clk 0:03:35.5]} 0-1

[Event "Live Chess"]
[Site "Chess.com"]
[Date "2023.05.21"]
[Round "-"]
[White "Alfiedog12"]
[Black "YrrriKharkiv"]
[Result "0-1"]
[WhiteElo "945"]
[BlackElo "2061"]
[TimeControl "300"]
[EndTime "4:15:47 PDT"]
[Termination "YrrriKharkiv won by resignation"]

1. d4 {[%clk 0:04:57.8]} 1... Nf6 {[%clk 0:04:58.4]} 2. Bf4 {[%clk 0:04:56.6]}
2... c5 {[%clk 0:04:57.6]} 3. Nf3 {[%clk 0:04:53.9]} 3... cxd4 {[%clk
0:04:56.8]} 4. Nxd4 {[%clk 0:04:49.6]} 4... d6 {[%clk 0:04:56.3]} 5. Bg5 {[%clk
0:04:40.9]} 5... Qa5+ {[%clk 0:04:52.1]} 6. c3 {[%clk 0:04:35.2]} 6... Qxg5
{[%clk 0:04:50.6]} 7. Qa4+ {[%clk 0:04:29.1]} 7... Bd7 {[%clk 0:04:48.5]} 8. Qb3
{[%clk 0:04:22.5]} 8... b6 {[%clk 0:04:47.5]} 9. e3 {[%clk 0:04:16]} 9... Qc5
{[%clk 0:04:40.5]} 10. Nd2 {[%clk 0:04:05.1]} 10... g6 {[%clk 0:04:37.8]} 11.
Bb5 {[%clk 0:03:54.6]} 11... Bg7 {[%clk 0:04:34]} 12. Ne4 {[%clk 0:03:46.8]}
12... Nxe4 {[%clk 0:04:31.1]} 13. Bxd7+ {[%clk 0:03:44.9]} 13... Nxd7 {[%clk
0:04:29.2]} 14. Kf1 {[%clk 0:03:41.2]} 14... Nd2+ {[%clk 0:04:27.3]} 0-1

[Event "Live Chess"]
[Site "Chess.com"]
[Date "2023.05.21"]
[Round "-"]
[White "f4nomore"]
[Black "wot-not"]
[Result "0-1"]
[WhiteElo "1386"]
[BlackElo "1572"]
[TimeControl "300"]
[EndTime "4:15:51 PDT"]
[Termination "wot-not won by checkmate"]

1. b3 {[%clk 0:04:58.2]} 1... Nf6 {[%clk 0:04:57.7]} 2. Bb2 {[%clk 0:04:57.3]}
2... d6 {[%clk 0:04:57]} 3. e3 {[%clk 0:04:56.4]} 3... e5 {[%clk 0:04:56.3]} 4.
Nf3 {[%clk 0:04:54.5]} 4... Be7 {[%clk 0:04:55.8]} 5. Be2 {[%clk 0:04:52.7]}
5... O-O {[%clk 0:04:54.8]} 6. O-O {[%clk 0:04:51.5]} 6... Bg4 {[%clk 0:04:54]}
7. h3 {[%clk 0:04:43.5]} 7... Bh5 {[%clk 0:04:52.5]} 8. Nh2 {[%clk 0:04:41.6]}
8... Bg6 {[%clk 0:04:51.3]} 9. d3 {[%clk 0:04:39.3]} 9... Nbd7 {[%clk
0:04:47.4]} 10. e4 {[%clk 0:04:34.5]} 10... h6 {[%clk 0:04:43.3]} 11. Ng4 {[%clk
0:04:32.1]} 11... Nh7 {[%clk 0:04:34.8]} 12. Nd2 {[%clk 0:04:28.8]} 12... f5
{[%clk 0:04:33.6]} 13. exf5 {[%clk 0:04:24.8]} 13... Bxf5 {[%clk 0:04:32.4]} 14.
Nxh6+ {[%clk 0:04:03.4]} 14... gxh6 {[%clk 0:04:29.7]} 15. Bg4 {[%clk
0:04:00.2]} 15... Kh8 {[%clk 0:04:12.2]} 16. Bxf5 {[%clk 0:03:54]} 16... Rxf5
{[%clk 0:04:11.2]} 17. Qg4 {[%clk 0:03:39.1]} 17... Rg5 {[%clk 0:03:59.1]} 18.
Qe4 {[%clk 0:03:35]} 18... c6 {[%clk 0:03:03.8]} 19. f4 {[%clk 0:03:29.8]} 19...
Rg7 {[%clk 0:02:53.8]} 20. fxe5 {[%clk 0:03:25.4]} 20... dxe5 {[%clk 0:02:47.2]}
21. d4 {[%clk 0:03:20.3]} 21... exd4 {[%clk 0:02:22.5]} 22. Bxd4 {[%clk
0:03:15.3]} 22... Bc5 {[%clk 0:02:19.7]} 23. Bxc5 {[%clk 0:03:07.4]} 23... Nxc5
{[%clk 0:02:18.8]} 24. Qe2 {[%clk 0:02:57.3]} 24... Qd4+ {[%clk 0:02:06.3]} 25.
Kh1 {[%clk 0:02:54.2]} 25... Rag8 {[%clk 0:02:04.8]} 26. Nf3 {[%clk 0:02:34]}
26... Qe4 {[%clk 0:01:51.5]} 27. Qxe4 {[%clk 0:02:27.5]} 27... Nxe4 {[%clk
0:01:50.1]} 28. Nh4 {[%clk 0:02:20.1]} 28... Ng3+ {[%clk 0:01:48.3]} 29. Kh2
{[%clk 0:02:17.4]} 29... Nxf1+ {[%clk 0:01:47.3]} 30. Rxf1 {[%clk 0:02:15.1]}
30... Ng5 {[%clk 0:01:31.1]} 31. g4 {[%clk 0:01:56.7]} 31... Rf7 {[%clk
0:01:18.6]} 32. Nf5 {[%clk 0:01:54]} 32... Rd8 {[%clk 0:00:56.2]} 33. Rf2 {[%clk
0:01:44.3]} 33... Ne4 {[%clk 0:00:38.6]} 34. Re2 {[%clk 0:01:37.8]} 34... Nc3
{[%clk 0:00:32.1]} 35. Re6 {[%clk 0:01:28.5]} 35... Rd2+ {[%clk 0:00:22.8]} 36.
Kg3 {[%clk 0:01:26.6]} 36... Rxf5 {[%clk 0:00:20.2]} 37. gxf5 {[%clk 0:01:24.3]}
37... Kg7 {[%clk 0:00:18.3]} 38. Re7+ {[%clk 0:01:22]} 38... Kf8 {[%clk
0:00:16.1]} 39. Rxb7 {[%clk 0:01:20.3]} 39... Rxc2 {[%clk 0:00:14.3]} 40. Rxa7
{[%clk 0:01:17.9]} 40... Nd5 {[%clk 0:00:13.1]} 41. Kh4 {[%clk 0:01:14.8]} 41...
Rc3 {[%clk 0:00:12.6]} 42. Ra6 {[%clk 0:01:08.1]} 42... Nf4 {[%clk 0:00:12.3]}
43. Ra8+ {[%clk 0:00:54.9]} 43... Kg7 {[%clk 0:00:11.4]} 44. b4 {[%clk
0:00:48.4]} 44... Kf6 {[%clk 0:00:10.5]} 45. Rf8+ {[%clk 0:00:43.1]} 45... Ke5
{[%clk 0:00:09.7]} 46. f6 {[%clk 0:00:39.3]} 46... Kf5 {[%clk 0:00:08.5]} 47. f7
{[%clk 0:00:37.6]} 47... Rxh3# {[%clk 0:00:07.6]} 0-1

[Event "Live Chess"]
[Site "Chess.com"]
[Date "2023.05.21"]
[Round "-"]
[White "LL220284LL"]
[Black "OmeetAtara"]
[Result "1-0"]
[WhiteElo "2325"]
[BlackElo "1813"]
[TimeControl "300"]
[EndTime "4:15:56 PDT"]
[Termination "LL220284LL won - game abandoned"]

1. Nf3 {[%clk 0:04:58.9]} 1... Nf6 {[%clk 0:04:58.6]} 2. b3 {[%clk 0:04:57.8]}
2... e6 {[%clk 0:04:53]} 3. Bb2 {[%clk 0:04:57.7]} 3... d5 {[%clk 0:04:51.3]} 4.
e3 {[%clk 0:04:56.6]} 4... Be7 {[%clk 0:04:49.1]} 5. d4 {[%clk 0:04:55.5]} 5...
c5 {[%clk 0:04:41.9]} 6. Bd3 {[%clk 0:04:53.2]} 6... Nc6 {[%clk 0:04:40.5]} 7.
O-O {[%clk 0:04:51.5]} 7... b6 {[%clk 0:04:39.2]} 8. Nbd2 {[%clk 0:04:51]} 8...
Bb7 {[%clk 0:04:38.4]} 9. e4 {[%clk 0:04:48]} 9... dxe4 {[%clk 0:04:34.5]} 10.
Nxe4 {[%clk 0:04:47.9]} 10... O-O {[%clk 0:04:30.4]} 11. dxc5 {[%clk 0:04:46.3]}
11... Nxe4 {[%clk 0:04:21.3]} 12. Bxe4 {[%clk 0:04:45.1]} 12... Bxc5 {[%clk
0:04:05.2]} 13. Qe2 {[%clk 0:04:42.2]} 13... Qc7 {[%clk 0:04:03.1]} 14. Bxh7+
{[%clk 0:04:05.2]} 14... Kxh7 {[%clk 0:04:01.1]} 15. Qe4+ {[%clk 0:04:02.8]}
15... Kg8 {[%clk 0:03:55.8]} 16. Ng5 {[%clk 0:04:01.6]} 16... g6 {[%clk
0:03:51.3]} 17. Qh4 {[%clk 0:03:57.8]} 1-0

[Event "Live Chess"]
[Site "Chess.com"]
[Date "2023.05.21"]
[Round "-"]
[White "JoeRoot66"]
[Black "Ocelot32"]
[Result "1-0"]
[WhiteElo "1919"]
[BlackElo "1378"]
[TimeControl "300"]
[EndTime "4:16:02 PDT"]
[Termination "JoeRoot66 won on time"]

1. e4 {[%clk 0:04:58.5]} 1... e6 {[%clk 0:04:57.4]} 2. d4 {[%clk 0:04:57.4]}
2... d5 {[%clk 0:04:54.3]} 3. Bd3 {[%clk 0:04:56.8]} 3... dxe4 {[%clk
0:04:51.2]} 4. Bxe4 {[%clk 0:04:56.7]} 4... c5 {[%clk 0:04:49.1]} 5. Ne2 {[%clk
0:04:53.9]} 5... cxd4 {[%clk 0:04:48]} 6. Qxd4 {[%clk 0:04:52.6]} 6... Nf6
{[%clk 0:04:46.4]} 7. Bf3 {[%clk 0:04:50.9]} 7... Qxd4 {[%clk 0:04:44.2]} 8.
Nxd4 {[%clk 0:04:50.8]} 8... Bc5 {[%clk 0:04:38.2]} 9. Nb3 {[%clk 0:04:49.6]}
9... Bb6 {[%clk 0:04:35.4]} 10. Nc3 {[%clk 0:04:48.8]} 10... Nc6 {[%clk
0:04:29.2]} 11. a4 {[%clk 0:04:38.9]} 11... O-O {[%clk 0:04:19]} 12. Bg5 {[%clk
0:04:14.1]} 12... Nd7 {[%clk 0:03:48.6]} 13. a5 {[%clk 0:04:07.9]} 13... Bc7
{[%clk 0:03:47]} 14. Bxc6 {[%clk 0:03:57.4]} 14... bxc6 {[%clk 0:03:42.6]} 15.
Nd4 {[%clk 0:03:57.3]} 15... c5 {[%clk 0:03:28.2]} 16. Ndb5 {[%clk 0:03:52.6]}
16... Be5 {[%clk 0:03:22.6]} 17. f4 {[%clk 0:03:44.6]} 17... Bxc3+ {[%clk
0:03:11.8]} 18. bxc3 {[%clk 0:03:44.5]} 18... a6 {[%clk 0:03:06.9]} 19. Nc7
{[%clk 0:03:38.1]} 19... Ra7 {[%clk 0:03:00.6]} 20. Be7 {[%clk 0:03:22.2]} 20...
Rxc7 {[%clk 0:02:52.2]} 21. Bxf8 {[%clk 0:03:21]} 21... Kxf8 {[%clk 0:02:50.4]}
22. O-O-O {[%clk 0:03:20.6]} 22... Nf6 {[%clk 0:02:42.7]} 23. g3 {[%clk
0:03:14.6]} 23... Bb7 {[%clk 0:02:40.9]} 24. Rhe1 {[%clk 0:03:09.8]} 24... c4
{[%clk 0:02:36.2]} 25. Rd6 {[%clk 0:03:07.4]} 25... Rc6 {[%clk 0:02:30.6]} 26.
Red1 {[%clk 0:03:00.5]} 26... Nd5 {[%clk 0:02:27.9]} 27. Rxc6 {[%clk 0:02:56.6]}
27... Bxc6 {[%clk 0:02:26.5]} 28. Kb2 {[%clk 0:02:55]} 28... Ke7 {[%clk
0:02:22]} 29. Rd4 {[%clk 0:02:52.1]} 29... Bb5 {[%clk 0:02:16.1]} 30. h4 {[%clk
0:02:42.9]} 30... f6 {[%clk 0:02:14.7]} 31. Rd1 {[%clk 0:02:33.5]} 31... Ne3
{[%clk 0:01:51.9]} 32. Re1 {[%clk 0:02:30]} 32... Ng4 {[%clk 0:01:46.7]} 33. Ka3
{[%clk 0:02:28.5]} 33... e5 {[%clk 0:01:42.8]} 34. Kb4 {[%clk 0:02:25.5]} 34...
Kd6 {[%clk 0:01:38.4]} 35. fxe5+ {[%clk 0:02:20.6]} 35... Nxe5 {[%clk
0:01:36.4]} 36. Rd1+ {[%clk 0:02:20.2]} 36... Ke6 {[%clk 0:01:34.7]} 37. Rd8
{[%clk 0:02:13.4]} 37... Ng4 {[%clk 0:01:20]} 38. Rg8 {[%clk 0:02:09.1]} 38...
Kf7 {[%clk 0:01:18.9]} 39. Ra8 {[%clk 0:02:06]} 39... g6 {[%clk 0:01:15.8]} 40.
Ra7+ {[%clk 0:02:04.5]} 40... Kg8 {[%clk 0:01:14.3]} 41. Kc5 {[%clk 0:02:00.5]}
41... Ne3 {[%clk 0:01:09.9]} 42. Kb6 {[%clk 0:01:54.8]} 42... Nxc2 {[%clk
0:01:08.1]} 43. Rxa6 {[%clk 0:01:54.2]} 43... Na3 {[%clk 0:00:55.3]} 44. Ra8+
{[%clk 0:01:50]} 44... Kf7 {[%clk 0:00:53.9]} 45. a6 {[%clk 0:01:49.5]} 45...
Bxa6 {[%clk 0:00:42.8]} 46. Rxa6 {[%clk 0:01:47]} 46... Nb1 {[%clk 0:00:39.4]}
47. Kc5 {[%clk 0:01:40.3]} 47... Nxc3 {[%clk 0:00:37.9]} 48. Kxc4 {[%clk
0:01:38.7]} 48... Ne4 {[%clk 0:00:36.6]} 49. Kd5 {[%clk 0:01:37.4]} 49... Nxg3
{[%clk 0:00:35.3]} 50. Ra7+ {[%clk 0:01:36.8]} 50... Kg8 {[%clk 0:00:31.6]} 51.
Ke6 {[%clk 0:01:36.7]} 51... f5 {[%clk 0:00:29.6]} 52. Kf6 {[%clk 0:01:35.9]}
52... Nh5+ {[%clk 0:00:26.5]} 53. Kg5 {[%clk 0:01:32.5]} 53... f4 {[%clk
0:00:23.1]} 54. Rb7 {[%clk 0:01:23.8]} 54... f3 {[%clk 0:00:20.9]} 55. Rb3
{[%clk 0:01:22.6]} 55... Kf7 {[%clk 0:00:19.7]} 56. Rxf3+ {[%clk 0:01:21.6]}
56... Kg7 {[%clk 0:00:19.3]} 57. Rb3 {[%clk 0:01:20.2]} 57... Kf7 {[%clk
0:00:15.7]} 58. Rb7+ {[%clk 0:01:18.6]} 58... Kg8 {[%clk 0:00:14.6]} 59. Kh6
{[%clk 0:01:14.7]} 59... Nf6 {[%clk 0:00:06.6]} 60. Rb8+ {[%clk 0:01:12.4]}
60... Kf7 {[%clk 0:00:05.2]} 61. Rb6 {[%clk 0:01:06.7]} 61... Ng4+ {[%clk
0:00:03.6]} 62. Kxh7 {[%clk 0:01:06.2]} 62... Ne5 {[%clk 0:00:01.5]} 63. Kh6
{[%clk 0:01:02]} 63... Nf3 {[%clk 0:00:00.1]} 64. Rb7+ {[%clk 0:01:00.4]} 1-0

[Event "Live Chess"]
[Site "Chess.com"]
[Date "2023.05.21"]
[Round "-"]
[White "gmnorfolk"]
[Black "Chesscoach_Golichenko"]
[Result "1/2-1/2"]
[WhiteElo "2114"]
[BlackElo "2611"]
[TimeControl "300"]
[EndTime "4:16:04 PDT"]
[Termination "Game drawn by repetition"]

1. d4 {[%clk 0:04:58.7]} 1... Nf6 {[%clk 0:04:58]} 2. c4 {[%clk 0:04:57.8]} 2...
e6 {[%clk 0:04:56]} 3. Nc3 {[%clk 0:04:53.4]} 3... Bb4 {[%clk 0:04:53.7]} 4. e3
{[%clk 0:04:52.7]} 4... O-O {[%clk 0:04:50.9]} 5. Bd3 {[%clk 0:04:49.2]} 5... d5
{[%clk 0:04:49.2]} 6. a3 {[%clk 0:04:48.1]} 6... Bxc3+ {[%clk 0:04:46.4]} 7.
bxc3 {[%clk 0:04:48]} 7... c5 {[%clk 0:04:45.5]} 8. cxd5 {[%clk 0:04:44.5]} 8...
exd5 {[%clk 0:04:43.6]} 9. Ne2 {[%clk 0:04:43.9]} 9... Nc6 {[%clk 0:04:40.7]}
10. O-O {[%clk 0:04:42.2]} 10... c4 {[%clk 0:04:39.8]} 11. Bc2 {[%clk
0:04:40.9]} 11... b5 {[%clk 0:04:39.4]} 12. Ng3 {[%clk 0:04:39]} 12... a5 {[%clk
0:04:38]} 13. Bb2 {[%clk 0:04:34.7]} 13... Rb8 {[%clk 0:04:35]} 14. f3 {[%clk
0:04:32.7]} 14... b4 {[%clk 0:04:32.9]} 15. axb4 {[%clk 0:04:31.9]} 15... axb4
{[%clk 0:04:32.2]} 16. e4 {[%clk 0:04:30.7]} 16... Qb6 {[%clk 0:04:23.4]} 17.
Kh1 {[%clk 0:04:26.6]} 17... Be6 {[%clk 0:04:08.5]} 18. e5 {[%clk 0:04:21.4]}
18... Nd7 {[%clk 0:04:06.5]} 19. f4 {[%clk 0:04:20.3]} 19... f5 {[%clk
0:04:05.3]} 20. exf6 {[%clk 0:04:12.7]} 20... Nxf6 {[%clk 0:04:03.8]} 21. Nh5
{[%clk 0:03:53.2]} 21... bxc3 {[%clk 0:03:25]} 22. Nxf6+ {[%clk 0:03:31.4]}
22... Rxf6 {[%clk 0:03:19.9]} 23. Bxc3 {[%clk 0:03:30.9]} 23... Bf5 {[%clk
0:03:00.6]} 24. Bxf5 {[%clk 0:03:22.9]} 24... Rxf5 {[%clk 0:02:59]} 25. g4
{[%clk 0:03:21.8]} 25... Rf7 {[%clk 0:02:57.1]} 26. Qf3 {[%clk 0:03:17.5]} 26...
Rd8 {[%clk 0:02:16.4]} 27. f5 {[%clk 0:03:14.5]} 27... Qb3 {[%clk 0:01:48.3]}
28. Rab1 {[%clk 0:03:05.1]} 28... Qc2 {[%clk 0:01:43.3]} 29. Rbe1 {[%clk
0:02:47.8]} 29... Re7 {[%clk 0:01:13]} 30. Rxe7 {[%clk 0:02:31.4]} 30... Nxe7
{[%clk 0:01:11.5]} 31. f6 {[%clk 0:02:24.2]} 31... gxf6 {[%clk 0:00:37.9]} 32.
Qxf6 {[%clk 0:02:20.6]} 32... Qe4+ {[%clk 0:00:36.7]} 33. Kg1 {[%clk 0:02:08.9]}
33... Qxg4+ {[%clk 0:00:35.8]} 34. Kh1 {[%clk 0:02:05.1]} 34... Qe4+ {[%clk
0:00:35]} 35. Rf3 {[%clk 0:01:55.1]} 35... Ra8 {[%clk 0:00:23.8]} 36. Ba5 {[%clk
0:01:25.5]} 36... Ng6 {[%clk 0:00:19.3]} 37. Qf7+ {[%clk 0:00:52.7]} 37... Kh8
{[%clk 0:00:18.2]} 38. Qf6+ {[%clk 0:00:17.8]} 38... Kg8 {[%clk 0:00:16.9]} 39.
Qf7+ {[%clk 0:00:17.2]} 39... Kh8 {[%clk 0:00:15.6]} 40. Qf6+ {[%clk 0:00:16.8]}
40... Kg8 {[%clk 0:00:14.6]} 1/2-1/2